bitfinex/quotes_ETHUSD_20210401
["timestamp","ask_amount","ask_price","bid_price","bid_amount"]
[1617235612518,7.0783119,1934.2,1933.8,0.38]
[1617235612723,2.0683119,1934.2,1933.8,0.38]
[1617235612921,8.96,1934.3,1934.0,0.39]
[1617235612922,8.57,1934.3,1934.0,0.39]
[1617235613123,8.57,1934.3,1934.2,17.0266]
[1617235613124,3.56,1934.3,1934.2,17.0266]
[1617235613321,0.4,1935.0,1934.2,17.0266]
[1617235613522,0.09406894,1934.9,1934.2,17.0266]
[1617235613751,5.06333063,1935.2,1934.7,8.7732]
[1617235613752,5.47333063,1935.2,1934.7,8.7732]
[1617235613953,13.22572063,1935.2,1934.7,8.7732]
[1617235614751,0.39,1935.0,1934.7,7.9527]
[1617235615750,0.39,1935.0,1934.6,9.85805]
[1617235615950,19.22831209,1935.2,1934.6,9.85805]
[1617235616150,3.32,1935.1,1934.6,16.86325]
[1617235616571,11.07212,1935.1,1934.6,9.1118]
[1617235616772,2.86,1935.0,1934.6,7.7445]
[1617235616974,2.86,1935.0,1934.6,7.0052]
[1617235617371,2.86,1935.0,1934.5,1.95416988]
[1617235617573,0.4,1935.1,1934.5,1.33376988]
[1617235617772,0.4,1935.1,1934.5,0.53]
[1617235617975,0.00605591,1935.0,1934.5,8.28163]
[1617235618184,0.00605591,1935.0,1934.5,0.14]
[1617235618587,0.39,1934.8,1934.5,0.14]
[1617235618785,0.39,1934.8,1934.4,10.33527]
[1617235619399,13.15867591,1935.0,1934.4,10.33527]
[1617235619798,13.15867591,1935.0,1934.2,1.33376988]
[1617235619799,0.4,1934.8,1934.2,1.33376988]
[1617235620000,0.4,1934.7,1934.1,1.19376988]
[1617235620200,5.39,1934.6,1934.1,1.19376988]
[1617235620400,0.41,1934.3,1934.1,1.19376988]
[1617235620606,8.8647,1934.3,1934.1,1.19376988]
[1617235620800,5.01,1934.2,1934.1,1.19376988]
[1617235620999,5.01,1934.2,1933.8,0.41]
[1617235621200,8.4547,1934.3,1933.8,0.41]
[1617235621632,8.4547,1934.3,1934.1,0.4]
[1617235622232,8.4547,1934.3,1933.7,0.14]
[1617235622432,8.4547,1934.3,1933.9,0.38]
[1617235623432,8.4547,1934.3,1933.9,8.13379]
[1617235623632,8.4547,1934.3,1933.9,7.75379]
[1617235623835,0.38,1934.2,1933.7,10.47843]
[1617235624033,0.28,1934.5,1933.8,0.41]
[1617235624244,45.72928,1935.4,1933.8,0.41]
[1617235624245,0.09406894,1934.7,1933.8,0.41]
[1617235625244,5.01,1934.6,1933.8,0.41]
[1617235625444,13.15431,1934.6,1934.0,0.41]
[1617235625644,3.52,1934.5,1934.0,0.41]
[1617235626446,3.91,1934.5,1933.9,0.39]
[1617235626870,0.41,1934.4,1933.8,0.4]
[1617235627670,0.41,1934.4,1933.8,8.1543]
[1617235628070,0.41,1934.4,1933.8,0.4]
[1617235628868,5.01,1934.3,1933.8,0.4]
[1617235629268,5.01,1934.3,1933.8,8.15454]
[1617235629896,5.01,1934.3,1933.8,0.4]
[1617235630096,5.01,1934.3,1933.7,10.47843]
[1617235630097,0.4,1934.2,1933.7,0.14]
[1617235630298,0.4,1934.1,1933.6,0.20665275]
[1617235630497,8.15604,1934.1,1933.6,0.20665275]
[1617235630699,3.2,1934.0,1933.6,0.20665275]
[1617235631103,3.61,1934.0,1933.6,0.20665275]
[1617235631700,3.61,1934.0,1933.9,0.1677]
[1617235632527,3.2,1934.0,1933.9,0.5677]
[1617235632725,4.53020653,1934.4,1933.9,0.5677]
[1617235632726,9.44613759,1934.4,1933.9,0.5677]
[1617235632924,5.01,1934.4,1933.9,0.5677]
[1617235633327,0.4,1934.4,1933.9,0.1177]
[1617235633527,0.49406894,1934.4,1933.9,0.1177]
[1617235634528,0.4,1934.4,1933.9,7.87161]
[1617235634766,2.92,1934.3,1933.9,7.87161]
[1617235635367,2.92,1934.3,1933.9,0.1177]
[1617235636167,2.92,1934.3,1934.0,0.4]
[1617235636369,6.388,1934.3,1934.0,0.4]
[1617235637167,6.388,1934.3,1934.0,7.75353]
[1617235637374,6.388,1934.3,1933.9,0.1177]
[1617235637575,3.468,1934.3,1933.9,0.1177]
[1617235637978,3.868,1934.3,1933.9,0.1177]
[1617235638576,0.39,1934.2,1933.9,0.1177]
[1617235639995,2.4581964,1934.2,1933.9,0.1177]
[1617235640398,10.2139364,1934.2,1933.9,0.1177]
[1617235640598,5.01,1934.1,1933.9,0.1177]
[1617235641398,16.56,1934.0,1933.9,0.1177]
[1617235641603,26.11079684,1934.0,1933.9,0.1177]
[1617235641799,26.11079684,1934.0,1933.1,2.58376988]
[1617235641800,26.11079684,1934.0,1933.1,1.0]
[1617235642001,0.4,1933.3,1933.1,1.0]
[1617235642202,7.49,1933.2,1933.1,1.0]
[1617235643030,17.83765,1933.2,1933.1,1.0]
[1617235643429,28.80813939,1933.2,1933.1,1.0]
[1617235643831,17.6,1933.1,1932.0,12.9027543]
[1617235644031,17.6,1933.1,1932.1,1.52]
[1617235644032,8.4568,1932.8,1932.1,1.52]
[1617235644233,5.01,1932.6,1932.1,1.52]
[1617235645032,12.77231,1932.6,1932.1,1.52]
[1617235645253,5.01,1932.5,1932.1,1.52]
[1617235645453,3.9,1932.4,1932.1,1.14]
[1617235647256,8.9,1932.4,1932.1,1.0]
[1617235647458,14.41,1932.2,1932.1,1.0]
[1617235647667,19.42,1932.2,1932.1,1.0]
[1617235647878,19.42,1932.2,1931.4,7.76332]
[1617235647879,14.95,1932.1,1931.4,7.90332]
[1617235648178,14.95,1932.1,1931.4,0.14]
[1617235648379,0.39,1931.7,1931.4,0.14]
[1617235648579,10.0148,1931.7,1931.3,2.07805048]
[1617235648983,9.6248,1931.7,1931.3,2.07805048]
[1617235649579,9.6248,1931.7,1931.3,2.02805048]
[1617235650998,9.6248,1931.7,1931.3,2.42805048]
[1617235651600,9.6248,1931.7,1931.4,0.41]
[1617235652002,9.6248,1931.7,1931.3,2.02805048]
[1617235652200,9.6248,1931.7,1931.3,9.79152048]
[1617235652800,10.6248,1931.7,1931.3,9.79152048]
[1617235653023,10.6248,1931.7,1931.4,0.4]
[1617235653228,0.8762,1931.5,1931.4,0.4]
[1617235653422,1.0,1931.7,1931.4,0.4]
[1617235653626,1.0,1931.7,1931.6,10.86]
[1617235654025,1.0,1931.7,1931.6,21.36]
[1617235654822,1.0,1931.7,1931.6,22.34918005]
[1617235655023,1.0,1931.7,1931.6,11.84918005]
[1617235656049,1.0,1931.7,1931.6,16.64918005]
[1617235656451,1.0,1931.7,1931.6,16.80661604]
[1617235656651,1.0,1931.7,1931.6,12.00661604]
[1617235657051,1.0,1931.7,1931.6,11.95661604]
[1617235658877,1.0,1931.7,1931.6,13.15038592]
[1617235661401,1.0,1931.7,1931.6,11.95661604]
[1617235661803,1.0,1931.7,1931.6,11.59661604]
[1617235662004,1.0,1931.7,1931.6,1.14661604]
[1617235663005,1.0,1931.7,1931.6,7.69661604]
[1617235663234,1.0,1931.7,1931.6,1.14661604]
[1617235664032,1.0,1931.7,1931.6,8.39661604]
[1617235664635,0.95,1931.7,1931.6,8.79661604]
[1617235665039,0.95,1931.7,1931.6,16.55915604]
[1617235665235,0.95,1931.7,1931.6,1.14661604]
[1617235665840,0.95,1931.7,1931.6,1.54661604]
[1617235667051,0.95,1931.7,1931.6,6.19661604]
[1617235667656,0.95,1931.7,1931.6,1.54661604]
[1617235668055,0.95,1931.7,1931.6,6.99661604]
[1617235668452,0.95,1931.7,1931.6,1.38918005]
[1617235668876,0.95,1931.7,1931.6,0.4]
[1617235669278,0.95,1931.7,1931.4,10.48964]
[1617235669479,0.95,1931.7,1931.4,10.89964]
[1617235669679,0.95,1931.7,1931.4,0.55]
[1617235670283,0.95,1931.7,1931.4,0.14]
[1617235670479,0.95,1931.7,1931.3,2.02805048]
[1617235672300,0.4,1931.6,1931.3,2.02805048]
[1617235672503,8.16639,1931.6,1931.3,2.02805048]
[1617235672700,6.21,1931.4,1931.3,2.02805048]
[1617235672902,5.01,1931.4,1931.3,2.02805048]
[1617235673099,4.5,1931.5,1931.3,2.02805048]
[1617235673300,5.01,1931.4,1931.3,2.02805048]
[1617235673699,3.3,1931.5,1931.3,2.02805048]
[1617235674326,7.3608743,1931.6,1931.3,2.02805048]
[1617235674927,7.7408743,1931.6,1931.3,1.97805048]
[1617235675127,0.39,1931.5,1931.3,1.97805048]
[1617235675327,5.4,1931.5,1931.3,1.97805048]
[1617235675530,0.39,1931.5,1931.3,1.97805048]
[1617235675728,9.8370943,1931.6,1931.3,1.97805048]
[1617235675927,10.2270943,1931.6,1931.3,1.97805048]
[1617235676527,2.4608743,1931.6,1931.3,1.97805048]
[1617235677150,0.4,1931.5,1931.3,1.97805048]
[1617235677550,5.01,1931.4,1931.3,1.97805048]
[1617235679378,5.42,1931.4,1931.3,1.97805048]
[1617235679578,15.45070027,1931.4,1931.3,1.97805048]
[1617235679779,16.65070027,1931.4,1931.3,0.95124715]
[1617235679980,19.87079684,1931.4,1931.3,0.95124715]
[1617235681380,27.87079684,1931.4,1931.3,0.95124715]
[1617235681579,14.97079684,1931.4,1931.3,0.95124715]
[1617235682001,6.62,1931.4,1931.3,0.95124715]
[1617235683601,6.62,1931.4,1931.3,0.90124715]
[1617235684403,14.42,1931.4,1931.3,0.75124715]
[1617235685024,8.29990343,1931.4,1931.3,0.75124715]
[1617235685425,6.62,1931.4,1931.3,0.75124715]
[1617235685827,12.07,1931.4,1931.3,0.75124715]
[1617235686226,10.87,1931.4,1931.3,0.75124715]
[1617235686426,5.86,1931.4,1931.3,0.75124715]
[1617235686827,7.25,1931.3,1931.1,1.0]
[1617235687026,15.40775,1931.3,1931.1,1.0]
[1617235687255,17.4791478,1931.3,1931.1,1.0]
[1617235687456,2.68,1931.2,1931.1,1.0]
[1617235687857,3.08,1931.2,1931.1,1.0]
[1617235688058,14.4899587,1931.2,1931.1,1.0]
[1617235688258,14.4899587,1931.2,1930.6,1.0]
[1617235688457,14.74,1930.7,1930.6,1.0]
[1617235688660,24.29079684,1930.7,1930.6,1.0]
[1617235689256,32.29079684,1930.7,1930.6,1.0]
[1617235689458,49.66593684,1930.7,1930.6,0.9]
[1617235689657,49.66593684,1930.7,1930.1,0.1453453]
[1617235689658,15.85,1930.6,1930.1,0.1453453]
[1617235689879,0.39,1930.4,1930.1,0.1453453]
[1617235690079,0.09406894,1930.4,1930.1,0.1453453]
[1617235690278,0.39,1930.5,1930.1,0.1453453]
[1617235690481,0.09406894,1930.6,1930.1,1.1453453]
[1617235690879,2.16598364,1930.6,1930.1,1.1453453]
[1617235691079,0.39,1930.4,1930.1,0.8953453]
[1617235691479,8.98950894,1930.6,1930.1,0.8953453]
[1617235691679,16.75987894,1930.6,1930.1,1.31124868]
[1617235691878,4.64,1930.5,1930.1,0.92124868]
[1617235692081,5.04,1930.5,1930.1,0.92124868]
[1617235692505,5.01,1930.3,1930.1,0.92124868]
[1617235692705,9.65,1930.5,1930.1,0.92124868]
[1617235693105,2.0721965,1930.3,1930.1,0.92124868]
[1617235693307,9.65,1930.5,1930.1,0.92124868]
[1617235694309,2.4621001,1930.4,1930.1,0.92124868]
[1617235694507,2.0721001,1930.4,1930.1,0.92124868]
[1617235694707,5.01,1930.3,1930.1,0.92124868]
[1617235695357,7.0821001,1930.4,1930.1,0.92124868]
[1617235695558,2.0721001,1930.4,1930.1,0.92124868]
[1617235695756,5.01,1930.2,1930.1,0.92124868]
[1617235695955,5.01,1930.3,1930.1,0.92124868]
[1617235696158,5.01,1930.2,1930.1,0.87124868]
[1617235698557,6.21,1930.2,1930.1,0.87124868]
[1617235698756,5.01,1930.2,1930.1,0.87124868]
[1617235699559,5.01,1930.2,1930.1,1.26124868]
[1617235699759,7.0821001,1930.4,1930.1,1.26124868]
[1617235699960,7.0821001,1930.4,1930.2,0.38]
[1617235700159,2.0721001,1930.4,1930.2,0.38]
[1617235700376,2.0721001,1930.4,1930.1,0.87124868]
[1617235701577,2.0721001,1930.4,1930.2,0.4]
[1617235701779,7.0821001,1930.4,1930.2,0.4]
[1617235702177,5.01,1930.3,1930.2,0.4]
[1617235702378,6.03950844,1930.3,1930.1,0.87124868]
[1617235703202,5.01717502,1930.3,1930.1,0.87124868]
[1617235703406,5.01717502,1930.3,1930.1,0.82124868]
[1617235703602,5.40717502,1930.3,1930.1,0.82124868]
[1617235704003,0.41,1930.2,1930.1,0.82124868]
[1617235704604,5.42,1930.2,1930.1,0.82124868]
[1617235705405,5.01,1930.2,1930.1,0.82124868]
[1617235706628,13.01,1930.2,1930.1,0.82124868]
[1617235707032,5.01,1930.2,1930.1,0.82124868]
[1617235707629,5.01,1930.2,1930.1,0.72124868]
[1617235709098,6.6,1930.2,1930.1,0.72124868]
[1617235709298,13.98197,1930.2,1930.1,0.72124868]
[1617235709700,12.78197,1930.2,1930.1,0.72124868]
[1617235709906,5.01,1930.2,1930.1,0.72124868]
[1617235710900,5.01,1930.2,1929.6,1.0]
[1617235710901,15.45,1930.1,1929.6,1.0]
[1617235711099,13.81079684,1930.0,1929.6,1.0]
[1617235711301,5.01,1929.8,1929.6,1.0]
[1617235711701,5.01,1929.7,1929.6,1.0]
[1617235711901,12.0682,1929.7,1929.6,1.0]
[1617235712305,13.2682,1929.7,1929.6,1.0]
[1617235712505,21.61899684,1929.7,1929.6,1.0]
[1617235712701,23.81299684,1929.7,1929.6,1.0]
[1617235712901,23.81982671,1929.7,1929.6,1.0]
[1617235713101,23.81982671,1929.7,1929.6,0.85]
[1617235713702,9.25902987,1929.7,1929.6,0.85]
[1617235714503,17.55902987,1929.7,1929.6,0.85]
[1617235714703,25.90982671,1929.7,1929.6,0.85]
[1617235715103,26.80982671,1929.7,1929.6,0.85]
[1617235715303,18.80982671,1929.7,1929.6,0.85]
[1617235715703,18.40982671,1929.7,1929.6,0.85]
[1617235715902,26.79982671,1929.7,1929.6,0.85]
[1617235716130,29.6547217,1929.7,1929.6,0.85]
[1617235716336,29.6547217,1929.7,1929.6,1.85]
[1617235716337,12.4125217,1929.7,1929.6,1.85]
[1617235716536,4.06172486,1929.7,1929.6,3.98220306]
[1617235716738,0.09406894,1930.5,1929.7,9.45]
[1617235716933,4.0539016,1930.3,1929.9,0.14]
[1617235717132,3.1854016,1930.3,1929.9,0.14]
[1617235717333,2.0721005,1930.7,1929.9,10.49897]
[1617235717731,2.3591005,1930.7,1930.1,0.4]
[1617235717931,2.7591005,1930.7,1930.1,0.4]
[1617235718131,3.80740321,1930.7,1930.1,0.4]
[1617235718332,0.287,1930.7,1930.4,0.4]
[1617235718532,4.0536774,1930.7,1930.4,0.4]
[1617235718761,4.0036774,1930.7,1930.4,0.4]
[1617235719159,4.0036774,1930.7,1930.1,0.14]
[1617235719361,4.0036774,1930.7,1929.7,28.32271]
[1617235719362,7.8889474,1930.7,1929.7,19.80981]
[1617235719561,0.301,1930.5,1930.0,0.14]
[1617235719761,9.31995971,1930.7,1930.4,0.41]
[1617235719762,7.8889474,1930.7,1930.4,0.41]
[1617235719963,0.09406894,1930.9,1930.4,18.2612]
[1617235720165,0.09406894,1931.1,1930.4,18.2612]
[1617235720362,1.03127588,1931.2,1930.4,18.2612]
[1617235720562,4.33278013,1931.3,1930.4,18.2612]
[1617235720563,4.73278013,1931.3,1930.7,0.39]
[1617235720762,4.82684907,1931.3,1930.7,0.39]
[1617235721167,6.02684907,1931.3,1930.7,0.39]
[1617235721384,4.82684907,1931.3,1930.7,0.39]
[1617235721584,5.36038343,1931.3,1930.7,0.39]
[1617235721984,5.36038343,1931.3,1930.9,0.41]
[1617235722183,5.36038343,1931.3,1930.6,0.14]
[1617235722383,5.45445237,1931.3,1930.8,0.39]
[1617235722582,5.36038343,1931.3,1930.8,0.39]
[1617235722785,5.08038343,1931.3,1930.8,0.39]
[1617235723382,1.0276033,1931.3,1930.8,0.39]
[1617235723583,1.0276033,1931.3,1931.0,0.41]
[1617235724612,1.0276033,1931.3,1930.9,0.14]
[1617235724613,5.01,1931.2,1930.9,0.14]
[1617235726206,11.7635451,1931.4,1930.9,0.53]
[1617235726407,11.7635451,1931.4,1931.1,0.38]
[1617235726408,2.94,1931.3,1931.1,0.38]
[1617235727035,3.97505946,1931.3,1931.1,0.38]
[1617235727236,1.03505946,1931.3,1931.1,0.38]
[1617235727834,1.03505946,1931.3,1930.9,1.14]
[1617235728037,1.03505946,1931.3,1930.9,1.55]
[1617235728234,3.88383,1931.4,1930.9,1.55]
[1617235728235,4.16383,1931.4,1930.9,1.55]
[1617235728436,0.38,1931.2,1930.9,1.0]
[1617235729254,2.0717054,1931.1,1930.9,1.0]
[1617235729456,7.76991,1931.0,1930.9,1.0]
[1617235729655,12.77991,1931.0,1930.9,1.0]
[1617235730254,21.13070684,1931.0,1930.9,1.0]
[1617235730454,12.77991,1931.0,1930.9,1.0]
[1617235730855,21.13070684,1931.0,1930.9,1.0]
[1617235731656,23.45209513,1931.0,1930.9,1.0]
[1617235731880,21.53070684,1931.0,1930.9,1.0]
[1617235732679,21.13070684,1931.0,1930.9,1.0]
[1617235733284,12.77991,1931.0,1930.9,1.0]
[1617235733882,13.15991,1931.0,1930.9,1.0]
[1617235734283,21.51070684,1931.0,1930.9,0.59587372]
[1617235734710,22.50430684,1931.0,1930.9,0.59587372]
[1617235734910,23.51080684,1931.0,1930.9,0.59587372]
[1617235735112,24.66140684,1931.0,1930.9,0.59587372]
[1617235735311,26.58279513,1931.0,1930.9,0.59587372]
[1617235737330,35.78279513,1931.0,1930.9,0.59587372]
[1617235738331,8.7,1930.9,1930.8,2.948]
[1617235738533,23.66079684,1930.9,1930.8,2.948]
[1617235738730,25.58218513,1930.9,1930.8,2.948]
[1617235738931,33.58218513,1930.9,1930.8,2.948]
[1617235739131,32.38218513,1930.9,1930.8,2.948]
[1617235739760,11.02138829,1930.9,1930.8,2.948]
[1617235739955,1.92138829,1930.9,1930.8,2.948]
[1617235741156,5.01,1930.9,1930.8,2.948]
[1617235742380,13.41,1930.9,1930.8,2.948]
[1617235742583,13.76079684,1930.9,1930.8,2.948]
[1617235742781,5.41,1930.9,1930.8,2.948]
[1617235743783,0.52,1930.5,1930.2,0.39]
[1617235743980,0.52,1930.5,1930.2,0.14]
[1617235744781,5.53,1930.5,1930.2,0.14]
[1617235745003,4.40553,1930.5,1930.2,0.14]
[1617235745205,5.01,1930.3,1929.9,0.4]
[1617235746411,8.89581,1930.3,1929.9,0.4]
[1617235746608,8.88981,1930.3,1930.0,0.41]
[1617235747408,5.01,1930.3,1930.0,0.41]
[1617235747841,0.61406894,1930.5,1930.0,0.41]
[1617235748242,0.52,1930.5,1930.2,0.4]
[1617235749242,5.01,1930.4,1930.2,8.16928]
[1617235749844,4.97,1930.4,1930.3,0.39]
[1617235750260,0.52,1930.5,1930.3,0.39]
[1617235750461,0.47942,1930.5,1930.3,0.35902]
[1617235751059,0.46928,1930.5,1930.0,10.35903]
[1617235751260,0.46928,1930.5,1930.2,0.4]
[1617235751861,0.46928,1930.5,1930.0,10.49903]
[1617235752063,5.01,1930.4,1930.1,0.39]
[1617235752882,0.46928,1930.5,1930.1,0.39]
[1617235753500,0.46928,1930.5,1930.2,0.4]
[1617235753700,0.46928,1930.5,1930.2,1.89898539]
[1617235754099,0.46928,1930.5,1930.2,0.4]
[1617235754500,0.46928,1930.5,1930.3,7.76882]
[1617235755102,0.03137604,1930.4,1930.3,7.76882]
[1617235755301,0.03137604,1930.4,1930.3,7.71882]
[1617235755706,0.03137604,1930.4,1930.3,7.67235]
[1617235756706,0.03137604,1930.4,1930.3,8.67235]
[1617235757106,0.30689604,1930.5,1930.3,8.67235]
[1617235757306,0.30689604,1930.5,1930.3,0.97893]
[1617235757709,0.30689604,1930.5,1930.3,0.95298]
[1617235758133,0.43273508,1930.4,1930.3,0.95298]
[1617235758333,0.82273508,1930.4,1930.3,0.95298]
[1617235758534,1.12873508,1930.4,1930.3,0.95298]
[1617235759331,5.73950508,1930.4,1930.3,0.95298]
[1617235760334,13.92047508,1930.4,1930.3,0.90651]
[1617235760533,13.92047508,1930.4,1930.3,0.88871]
[1617235760760,13.92047508,1930.4,1929.7,5.41]
[1617235760761,30.27127192,1930.4,1929.7,5.0]
[1617235760960,30.27127192,1930.4,1929.5,1.19376988]
[1617235760961,13.7228,1929.8,1929.5,1.19376988]
[1617235761160,16.14,1929.7,1929.5,1.19376988]
[1617235761359,16.14,1929.7,1929.6,0.61606999]
[1617235761559,32.26548684,1929.7,1929.6,0.61606999]
[1617235761759,23.91469,1929.7,1929.6,0.61606999]
[1617235761959,21.51548684,1929.7,1929.6,0.61606999]
[1617235762358,21.93899192,1929.7,1929.6,0.61606999]
[1617235762559,29.93899192,1929.7,1929.6,0.61606999]
[1617235763158,21.93899192,1929.7,1929.6,0.60676999]
[1617235763784,7.77523,1929.4,1929.1,1.0]
[1617235763984,14.76393,1929.4,1929.1,1.0]
[1617235764186,5.01,1929.2,1929.1,1.0]
[1617235764789,4.98693,1929.2,1929.1,1.0]
[1617235765184,5.40398508,1929.2,1929.1,1.0]
[1617235765583,5.36415508,1929.2,1929.1,1.0]
[1617235765786,5.36415508,1929.2,1929.1,0.91688892]
[1617235766211,5.35620508,1929.2,1929.1,0.91688892]
[1617235766614,5.18447508,1929.2,1929.1,1.91688892]
[1617235767013,4.98159508,1929.2,1929.1,1.91688892]
[1617235768414,4.98159508,1929.2,1929.1,1.81464892]
[1617235768629,4.93159508,1929.2,1929.1,1.81464892]
[1617235769831,4.93159508,1929.2,1929.1,1.79776]
[1617235771260,4.73205508,1929.2,1929.1,1.79776]
[1617235772257,0.42350508,1929.2,1929.1,1.66765]
[1617235772856,0.81350508,1929.4,1929.1,1.66765]
[1617235773056,0.68359508,1929.4,1929.1,1.66765]
[1617235773259,5.01,1929.3,1929.1,1.66765]
[1617235773882,5.01,1929.2,1929.1,1.66765]
[1617235774285,5.01,1929.3,1929.1,1.66765]
[1617235774484,7.77563,1929.2,1929.1,1.66765]
[1617235775484,16.12642684,1929.2,1929.1,1.66765]
[1617235775684,23.63537684,1929.2,1929.1,1.66765]
[1617235775885,32.09423684,1929.1,1928.7,0.41]
[1617235776085,8.99228894,1929.0,1928.6,1.0]
[1617235776284,5.01,1928.9,1928.6,1.0]
[1617235776509,4.99973,1928.8,1928.6,1.0]
[1617235776911,4.93477,1928.8,1928.6,2.4]
[1617235777112,4.93477,1928.8,1928.7,0.39]
[1617235777311,7.24,1929.0,1928.7,0.39]
[1617235777512,5.22,1928.9,1928.7,0.39]
[1617235778912,0.42350508,1928.8,1928.6,9.31489]
[1617235779536,0.26113508,1928.8,1928.7,0.4]
[1617235780736,0.26113508,1928.8,1928.7,9.25]
[1617235781336,0.26113508,1928.8,1928.7,10.76498]
[1617235781756,4.34,1929.0,1928.7,10.76498]
[1617235781957,5.01,1928.8,1928.7,0.4]
[1617235782158,5.01,1928.8,1928.6,1.14]
[1617235782358,5.01,1928.8,1928.6,1.53]
[1617235782557,4.96,1928.9,1928.6,1.14]
[1617235782757,4.96,1928.9,1928.6,1.52]
[1617235783159,4.96,1928.9,1928.6,1.38]
[1617235783160,5.01,1928.7,1928.6,1.38]
[1617235783758,9.97,1928.9,1928.6,1.38]
[1617235783958,4.96,1928.9,1928.8,0.38]
[1617235784581,4.96,1928.9,1928.6,1.39]
[1617235785384,5.01,1928.7,1928.6,1.0]
[1617235785583,5.01,1928.7,1928.6,9.15493]
[1617235786385,0.39,1929.3,1928.6,9.15493]
[1617235786585,0.28,1929.3,1928.9,0.39]
[1617235787634,0.28,1929.3,1929.1,0.41]
[1617235787832,9.848177,1929.4,1928.8,0.14]
[1617235788031,0.37406894,1929.3,1928.8,0.53]
[1617235788230,7.73,1929.2,1928.8,0.53]
[1617235788631,5.01,1929.1,1928.8,0.53]
[1617235788832,5.01,1929.0,1928.8,0.39]
[1617235789033,5.01,1929.0,1928.7,8.16439]
[1617235789232,5.29,1929.1,1928.7,7.77439]
[1617235789434,5.7,1929.1,1928.6,1.14]
[1617235789836,5.01,1929.0,1928.6,1.14]
[1617235790035,5.01,1928.9,1928.6,1.14]
[1617235790237,5.01,1929.0,1928.6,1.14]
[1617235790433,8.89803,1929.0,1928.6,1.14]
[1617235790835,8.89803,1929.0,1928.8,3.0]
[1617235791639,16.6741,1929.0,1928.8,3.0]
[1617235793263,8.89803,1929.0,1928.8,3.0]
[1617235795286,5.01,1928.9,1928.8,3.0]
[1617235796486,12.78619,1928.9,1928.8,3.0]
[1617235796686,5.01,1928.9,1928.8,3.0]
[1617235799126,5.01,1929.0,1928.8,3.0]
[1617235799327,5.69,1928.9,1928.8,3.0]
[1617235799528,11.6554,1928.9,1928.8,3.0]
[1617235800535,19.04226,1928.9,1928.8,3.0]
[1617235801134,27.38250684,1928.9,1928.8,3.0]
[1617235801934,22.08250684,1928.9,1928.8,3.0]
[1617235802136,13.74226,1928.9,1928.8,3.0]
[1617235802778,13.74226,1928.9,1928.6,1.1039]
[1617235802979,5.01,1928.7,1928.6,1.1039]
[1617235803978,5.4,1928.7,1928.6,1.1039]
[1617235804181,5.01,1928.7,1928.6,1.1039]
[1617235806789,4.86,1928.7,1928.6,1.1039]
[1617235813461,29.01399,1928.8,1928.6,1.1039]
[1617235814267,4.44,1928.7,1928.6,1.1039]
[1617235814666,4.44,1928.7,1928.6,1.09371114]
[1617235818188,4.39,1928.7,1928.6,1.09371114]
[1617235822346,5.4,1929.0,1928.6,1.09371114]
[1617235822550,0.39,1929.0,1928.6,1.09371114]
[1617235822947,13.01,1929.2,1928.6,1.09371114]
[1617235823148,0.49406894,1929.1,1928.6,1.09371114]
[1617235823349,0.68,1929.1,1928.6,1.09371114]
[1617235825363,0.28,1929.1,1928.6,1.50371114]
[1617235825966,0.67,1929.1,1928.6,1.50371114]
[1617235826387,0.67,1929.1,1928.6,1.09371114]
[1617235827184,0.28,1929.1,1928.6,1.47371114]
[1617235827788,0.28,1929.1,1928.6,1.09371114]
[1617235828387,0.28,1929.1,1928.6,1.47371114]
[1617235829011,0.28,1929.1,1928.6,1.09371114]
[1617235829818,5.01,1929.0,1928.6,1.49371114]
[1617235830013,5.01,1929.0,1928.6,1.09371114]
[1617235830212,0.28,1929.1,1928.6,1.09371114]
[1617235831214,5.42,1929.2,1928.6,1.09371114]
[1617235831415,0.287,1929.1,1928.6,1.09371114]
[1617235832259,0.287,1929.1,1928.6,1.06565114]
[1617235832460,0.697,1929.1,1928.6,1.06565114]
[1617235832659,0.14771,1929.1,1928.6,1.06565114]
[1617235832863,5.01,1929.2,1928.7,5.73]
[1617235833063,5.55,1929.2,1928.7,0.66]
[1617235833663,0.41,1929.1,1928.7,0.28]
[1617235833861,5.42,1929.1,1928.7,0.28]
[1617235834060,0.41,1929.1,1928.7,0.28]
[1617235834263,5.01,1928.9,1928.6,1.08565114]
[1617235834462,5.01,1929.0,1928.6,1.08565114]
[1617235834663,5.01,1929.0,1928.6,0.65237114]
[1617235834664,0.38,1929.0,1928.6,0.65237114]
[1617235835065,5.39,1929.0,1928.6,0.62987114]
[1617235835263,5.01,1928.8,1928.6,0.62987114]
[1617235835668,5.39,1929.0,1928.6,0.62987114]
[1617235836467,6.05500823,1929.0,1928.6,0.62987114]
[1617235836667,5.01,1929.0,1928.6,0.62987114]
[1617235837505,5.39,1929.0,1928.6,0.62987114]
[1617235837905,23.12411886,1928.6,1928.5,0.2644]
[1617235838104,23.12411886,1928.6,1928.4,2.0854191]
[1617235838308,23.12411886,1928.6,1928.5,0.38]
[1617235839305,23.12411886,1928.6,1928.4,7.0854191]
[1617235839516,3.46,1928.5,1928.4,7.4654191]
[1617235840114,3.46,1928.5,1928.4,7.3654191]